bitfinex/quotes_SOLUSD_20250731
["timestamp","ask_amount","ask_price","bid_price","bid_amount"]
[1753948808504,3.74898346,181.51,181.5,3.21446107]
[1753948808897,7.88149901,181.51,181.5,3.21446107]
[1753948809202,8.56149901,181.51,181.5,0.06]
[1753948809386,7.88149901,181.51,181.5,0.06]
[1753948809789,7.88149901,181.51,181.5,3.93446107]
[1753948809790,3.74898346,181.51,181.5,3.93446107]
[1753948812195,3.74898346,181.51,181.5,3.21446107]
[1753948813313,3.74898346,181.51,181.5,3.93446107]
[1753948814806,3.74898346,181.51,181.5,3.21446107]
[1753948815389,3.74898346,181.51,181.5,3.93446107]
[1753948816918,3.74898346,181.51,181.5,3.21446107]
[1753948820117,3.74898346,181.51,181.5,3.93446107]
[1753948820509,3.74898346,181.51,181.5,3.21446107]
[1753948823707,3.74898346,181.51,181.5,3.86446107]
[1753948824810,3.74898346,181.51,181.5,3.21446107]
[1753948826720,9.96832178,181.51,181.5,0.06]
[1753948826931,12.7272479,181.51,181.5,0.06]
[1753948827417,8.59311568,181.51,181.5,0.06]
[1753948827827,12.72720737,181.51,181.5,0.06]
[1753948829421,12.72720737,181.51,181.5,3.21446107]
[1753948833409,12.01720737,181.51,181.5,3.21446107]
[1753948833945,12.01720737,181.51,181.5,3.86446107]
[1753948834129,3.74898346,181.51,181.5,3.86446107]
[1753948835138,3.74898346,181.51,181.5,3.21446107]
[1753948835621,4.45898346,181.51,181.5,3.21446107]
[1753948837907,3.74898346,181.51,181.5,3.21446107]
[1753948841038,4.45898346,181.51,181.5,3.21446107]
[1753948841413,4.45898346,181.51,181.5,0.06]
[1753948842042,12.71593286,181.51,181.5,0.06]
[1753948842918,11.62570016,181.51,181.5,0.06]
[1753948843120,2.65875076,181.51,181.5,0.06]
[1753948843314,3.36875076,181.51,181.5,0.06]
[1753948845234,7.49670205,181.51,181.5,0.06]
[1753948846245,17.13350266,181.51,181.5,0.06]
[1753948846421,17.13344894,181.51,181.5,0.06]
[1753948849149,17.13648962,181.51,181.5,0.06]
[1753948852925,11.6271513,181.51,181.5,0.06]
[1753948859865,17.13648962,181.51,181.5,0.06]
[1753948860559,8.87808908,181.51,181.5,0.06]
[1753948860748,17.14472538,181.51,181.5,0.06]
[1753948860951,11.63538706,181.51,181.5,0.06]
[1753948861340,3.36875076,181.51,181.5,0.06]
[1753948862347,11.63543372,181.51,181.5,0.06]
[1753948862861,11.63543608,181.51,181.5,0.06]
[1753948864664,10.92543608,181.51,181.5,0.06]
[1753948865069,10.92555747,181.51,181.5,0.06]
[1753948865364,10.92555747,181.51,181.5,78.64589878]
[1753948865542,10.92555747,181.51,181.5,77.93589878]
[1753948865948,11.64555747,181.51,181.5,77.93589878]
[1753948866965,10.92555747,181.51,181.5,77.93589878]
[1753948869470,10.92555747,181.51,181.5,78.64589878]
[1753948870661,10.92555747,181.51,181.5,77.93589878]
[1753948871553,10.92639177,181.51,181.5,77.93589878]
[1753948878381,10.92639177,181.51,181.5,78.64589878]
[1753948879687,2.65875076,181.51,181.5,81.80035985]
[1753948881376,3.72094791,181.51,181.5,81.80035985]
[1753948886582,3.72114908,181.51,181.5,81.80035985]
[1753948892069,7.85473392,181.51,181.5,81.80035985]
[1753948892269,3.72114908,181.51,181.5,81.80035985]
[1753948892890,7.85469562,181.51,181.5,81.80035985]
[1753948893891,4.13354654,181.51,181.5,81.80035985]
[1753948894193,3.72057919,181.51,181.5,81.80035985]
[1753948895078,3.72057919,181.51,181.5,78.64589878]
[1753948895290,7.85406576,181.51,181.5,81.80035985]
[1753948895787,7.85406576,181.51,181.5,78.64589878]
[1753948895996,8.56406576,181.51,181.5,77.93589878]
[1753948896168,12.69755233,181.51,181.5,77.93589878]
[1753948896994,18.20689065,181.51,181.5,77.93589878]
[1753948897490,12.69755233,181.51,181.5,77.93589878]
[1753948900103,18.20689065,181.51,181.5,77.93589878]
[1753948901374,11.98755233,181.51,181.5,77.93589878]
[1753948901572,12.69755233,181.51,181.5,77.93589878]
[1753948902204,18.20689065,181.51,181.5,77.93589878]
[1753948903788,18.20721623,181.51,181.5,77.93589878]
[1753948905701,17.49721623,181.51,181.5,77.93589878]
[1753948906699,17.49670573,181.51,181.5,77.93589878]
[1753948906876,17.49670126,181.51,181.5,77.93589878]
[1753948907606,18.20670126,181.51,181.5,77.93589878]
[1753948907903,18.20670509,181.51,181.5,77.93589878]
[1753948908696,17.49670509,181.51,181.5,77.93589878]
[1753948908899,17.49668868,181.51,181.5,77.93589878]
[1753948909402,7.85395689,181.51,181.5,78.62589878]
[1753948909603,11.9874393,181.51,181.5,78.62589878]
[1753948909777,7.85404519,181.51,181.5,78.62589878]
[1753948910704,3.72056278,181.51,181.5,78.62589878]
[1753948911905,3.72056278,181.51,181.5,81.78035985]
[1753948915195,3.75056278,181.52,181.5,81.78035985]
[1753948915387,29.75056278,181.52,181.51,41.99446107]
[1753948918584,29.75056278,181.52,181.51,119.87035985]
[1753948920085,33.88214397,181.52,181.51,119.87035985]
[1753948920900,44.20307368,181.52,181.51,116.05589878]
[1753948922498,40.07149249,181.52,181.51,116.05589878]
[1753948922698,35.93959759,181.52,181.51,116.05589878]
[1753948923011,33.88233662,181.52,181.51,116.05589878]
[1753948923390,39.39137143,181.52,181.51,116.05589878]
[1753948923589,39.39138976,181.52,181.51,116.05589878]
[1753948924033,33.88235495,181.52,181.51,116.71589878]
[1753948924515,29.75056278,181.52,181.51,116.71589878]
[1753948928500,33.88169531,181.52,181.51,116.05589878]
[1753948928832,38.01051823,181.52,181.51,116.05589878]
[1753948931235,38.01051823,181.52,181.51,116.11589878]
[1753948931722,38.69051823,181.52,181.51,116.11589878]
[1753948932221,38.01051823,181.52,181.51,116.11589878]
[1753948933922,33.87926016,181.52,181.51,116.11589878]
[1753948934105,38.01033561,181.52,181.51,116.11589878]
[1753948934702,38.69033561,181.52,181.51,116.11589878]
[1753948934910,38.01033561,181.52,181.51,116.11589878]
[1753948935533,38.69033561,181.52,181.51,116.11589878]
[1753948935729,38.01033561,181.52,181.51,116.11589878]
[1753948936218,29.74818471,181.52,181.51,116.77589878]
[1753948940736,29.74818471,181.52,181.51,119.93035985]
[1753948942029,33.87903224,181.52,181.51,119.93035985]
[1753948942417,29.74818471,181.52,181.51,119.93035985]
[1753948942635,3.74818471,181.52,181.51,136.71504382]
[1753948942928,0.03,181.52,181.51,142.22438214]
[1753948943730,0.03,181.52,181.51,154.84222642]
[1753948943930,0.03,181.53,181.51,154.84222642]
[1753948944150,0.03,181.53,181.52,38.61692761]
[1753948944328,0.03,181.56,181.55,97.75504382]
[1753948944508,0.03,181.56,181.55,135.99504382]
[1753948944714,0.03,181.56,181.55,136.67504382]
[1753948946758,0.03,181.56,181.55,149.7601683]
[1753948947284,0.03,181.56,181.55,144.25204382]
[1753948947452,0.03,181.56,181.55,102.17758275]
[1753948947659,0.03,181.56,181.55,119.19035985]
[1753948951575,0.03,181.56,181.55,119.21035985]
[1753948951879,0.69,181.56,181.55,119.21035985]
[1753948954756,0.03,181.56,181.55,119.21035985]
[1753948956276,0.03,181.56,181.55,135.99504382]
[1753948961577,0.03,181.56,181.55,136.67504382]
[1753948962774,0.69,181.56,181.55,116.05589878]
[1753948963077,4.39853698,181.56,181.55,119.21035985]
[1753948963671,3.73853698,181.56,181.55,119.21035985]
[1753948964572,3.73853698,181.56,181.55,116.05589878]
[1753948964768,3.73853698,181.56,181.55,119.21035985]
[1753948965300,3.73853698,181.56,181.55,119.89035985]
[1753948966888,3.73853698,181.56,181.55,119.21035985]
[1753948967281,6.1978211,181.56,181.55,116.05589878]
[1753948967481,13.06081915,181.56,181.55,116.05589878]
[1753948967680,17.18261641,181.56,181.55,116.05589878]
[1753948967878,14.02815534,181.56,181.55,116.05589878]
[1753948971994,14.02815534,181.56,181.55,38.24]
[1753948972390,18.15084062,181.56,181.55,38.24]
[1753948973789,14.02815534,181.56,181.55,38.24]
[1753948974585,14.02941903,181.56,181.55,38.24]
[1753948976895,8.52159793,181.56,181.55,38.24]
[1753948977276,26.0,181.56,181.55,38.24]
[1753948980401,31.5078211,181.56,181.55,38.24]
[1753948982805,35.33228217,181.56,181.55,38.24]
[1753948983693,32.1778211,181.56,181.55,38.24]
[1753948983894,35.33228217,181.56,181.53,77.81589878]
[1753948984092,3.15446107,181.54,181.52,38.3]
[1753948984297,3.15446107,181.53,181.52,0.06]
[1753948984501,3.82446107,181.53,181.52,0.06]
[1753948984694,8.6631924,181.53,181.52,0.06]
[1753948986607,5.50873133,181.53,181.52,0.75]
[1753948987712,5.50873133,181.53,181.52,0.06]
[1753948988412,8.6631924,181.53,181.52,0.06]
[1753948988788,3.15446107,181.53,181.52,0.06]
[1753948989292,6.86664266,181.53,181.52,0.06]
[1753948989512,10.99242277,181.53,181.52,0.06]
[1753948992725,10.99296034,181.53,181.52,0.06]
[1753948993817,16.50169167,181.53,181.52,0.06]
[1753948994523,17.17169167,181.53,181.52,0.06]
[1753948997915,16.56885849,181.53,181.52,0.06]
[1753949002528,41.89885849,181.53,181.52,0.73]
[1753949002713,15.89885849,181.53,181.52,0.73]
[1753949003029,15.89885849,181.53,181.52,0.06]
[1753949005524,46.02109002,181.53,181.52,0.06]
[1753949005734,20.02109002,181.53,181.52,0.06]
[1753949007129,20.02118198,181.53,181.52,0.06]
[1753949009532,46.68118198,181.53,181.52,0.06]
[1753949009713,33.29902626,181.53,181.52,0.06]
[1753949010034,58.92118198,181.53,181.52,0.06]
[1753949010218,71.53902626,181.53,181.52,1e-08]
[1753949010740,76.18158225,181.53,181.52,1e-08]
[1753949010937,26.0,181.51,181.5,0.06]
[1753949011108,78.77245065,181.51,181.5,0.06]
[1753949011311,89.5814,181.51,181.5,0.06]
[1753949013335,84.94178897,181.51,181.5,0.06]
[1753949013508,84.28178897,181.51,181.5,0.06]
[1753949013831,84.28178897,181.51,181.5,0.73]
[1753949014041,46.02032771,181.51,181.5,0.73]
[1753949014634,42.86586664,181.51,181.5,0.73]
[1753949014834,46.02032771,181.51,181.5,0.73]
[1753949015138,46.02032771,181.51,181.5,0.06]
[1753949016517,46.02032771,181.51,181.5,0.73]
[1753949017629,46.02032771,181.51,181.5,0.06]
[1753949018936,46.0173761,181.51,181.5,0.06]
[1753949019419,46.6773761,181.51,181.5,0.06]
[1753949020024,84.9173761,181.51,181.5,0.06]
[1753949022247,89.55698713,181.51,181.5,0.06]
[1753949022448,84.9173761,181.51,181.5,0.06]
[1753949023321,89.55698713,181.51,181.5,0.06]
[1753949024541,89.5579472,181.51,181.5,0.06]
[1753949025029,89.55960194,181.51,181.5,0.06]
[1753949025544,88.89960194,181.51,181.5,0.06]
[1753949025934,50.65960194,181.51,181.5,0.06]
[1753949026134,50.65960194,181.51,181.5,0.73]
[1753949026725,50.65960194,181.51,181.5,0.06]
[1753949027050,46.01999091,181.51,181.5,0.06]
[1753949027858,42.86552984,181.51,181.5,0.06]
[1753949028030,46.01999091,181.51,181.5,0.06]
[1753949029251,46.01999091,181.51,181.5,0.73]
[1753949030031,42.86552984,181.51,181.5,0.73]
[1753949030232,46.01878757,181.51,181.5,0.73]
[1753949030854,42.8643265,181.51,181.5,0.73]
[1753949031053,46.01878757,181.51,181.5,0.73]
[1753949032837,42.8643265,181.51,181.5,0.73]
[1753949033248,46.01878757,181.51,181.5,0.06]
[1753949034267,46.68878757,181.51,181.5,0.06]
[1753949034469,51.32751038,181.51,181.5,0.06]
[1753949035151,89.54751038,181.51,181.5,0.06]
[1753949035672,85.42490356,181.51,181.5,0.06]
[1753949036574,85.42721963,181.51,181.49,0.06]
[1753949036745,10.38684243,181.5,181.49,0.06]
[1753949036945,15.8964843,181.5,181.49,0.06]
[1753949037770,15.89897532,181.5,181.49,0.06]
[1753949039973,16.57062569,181.5,181.49,0.06]
[1753949040172,21.21166457,181.5,181.49,0.06]
[1753949042402,20.54166457,181.5,181.49,0.06]
[1753949043055,21.21166457,181.5,181.49,0.06]
[1753949043258,17.3872035,181.5,181.49,0.06]
[1753949043450,16.57062569,181.5,181.48,0.06]
[1753949043752,53.92518398,181.49,181.48,0.06]
[1753949043953,50.77072291,181.49,181.48,0.06]
[1753949044149,50.39963948,181.49,181.48,0.06]
[1753949044355,49.28102705,181.49,181.48,0.06]
[1753949044779,53.40898625,181.49,181.48,0.06]
[1753949045578,58.9189317,181.49,181.48,0.06]
[1753949045754,3.15446107,181.48,181.47,0.06]
[1753949045955,15.18898625,181.48,181.47,0.06]
[1753949046160,15.18898625,181.48,181.47,1e-08]
[1753949046392,22.11146897,181.48,181.46,0.06]
[1753949046675,57.2570079,181.47,181.46,0.06]
[1753949046981,60.41146897,181.47,181.46,0.06]
[1753949048175,65.92202167,181.47,181.46,0.06]
[1753949048566,3.15446107,181.46,181.45,0.06]
[1753949048766,19.16053823,181.46,181.45,0.06]
[1753949049380,19.15769628,181.46,181.45,0.06]
[1753949049562,24.66597782,181.46,181.45,0.06]
[1753949049967,22.18151675,181.46,181.45,0.06]
[1753949050165,25.33597782,181.46,181.45,0.06]
[1753949050586,17.68784768,181.46,181.45,0.06]
[1753949050964,17.01784768,181.46,181.45,0.06]
[1753949051287,26.0,181.44,181.43,0.06]
[1753949051467,78.87480806,181.44,181.43,0.06]
[1753949052279,84.3862719,181.44,181.43,0.06]
[1753949055085,97.67411618,181.44,181.41,0.06]
[1753949055258,3.15446107,181.42,181.41,0.06]
[1753949055459,52.87480806,181.42,181.41,0.06]
[1753949057282,54.86356321,181.42,181.41,0.06]
[1753949058958,54.86356321,181.42,181.41,0.77]
[1753949060189,51.70910214,181.42,181.41,0.77]
[1753949060393,16.50356321,181.42,181.41,0.77]
[1753949060891,13.34910214,181.42,181.41,0.77]
[1753949061093,17.70299357,181.42,181.41,0.77]
[1753949066191,20.85745464,181.42,181.41,0.77]
[1753949070890,17.70299357,181.42,181.41,0.77]
[1753949072702,33.83703071,181.42,181.41,3.92446107]
[1753949073005,4.38389886,181.45,181.41,3.92446107]
[1753949073173,26.0,181.43,181.42,3.81446107]
[1753949073379,33.82306222,181.43,181.42,3.81446107]
[1753949073600,33.82306222,181.43,181.42,0.66]
[1753949073784,33.82306222,181.43,181.42,3.81446107]
[1753949073995,33.82306222,181.43,181.42,0.66]
[1753949074175,33.82306222,181.43,181.42,3.81446107]
[1753949076695,29.70553781,181.43,181.42,5.41706107]
[1753949077000,3.70553781,181.43,181.42,5.41706107]
[1753949077176,4.12022902,181.43,181.42,5.41706107]
[1753949077373,4.12022902,181.43,181.42,83.23295985]
[1753949078010,3.70553781,181.44,181.42,89.52215985]
[1753949078199,3.70553781,181.44,181.43,3.81446107]
[1753949079181,7.82773755,181.44,181.43,3.81446107]
[1753949080592,7.82773755,181.44,181.43,42.13446107]
[1753949081304,3.70553781,181.44,181.43,42.13446107]
[1753949081508,3.70553781,181.44,181.43,119.95035985]
[1753949099427,26.03,181.45,181.43,119.95035985]
[1753949099622,26.03,181.45,181.44,3.87446107]
[1753949099924,33.86091576,181.45,181.44,3.87446107]
[1753949100522,33.86091576,181.45,181.44,0.72]
[1753949100705,33.86091576,181.45,181.44,3.15446107]
[1753949100903,33.86091576,181.45,181.43,116.85589878]
[1753949101120,26.03,181.45,181.44,3.15446107]
[1753949101333,33.86154203,181.45,181.44,3.15446107]
[1753949102034,40.03280107,181.45,181.43,77.81589878]
[1753949102331,7.83154203,181.44,181.43,77.81589878]
[1753949103106,10.9860031,181.44,181.43,77.81589878]
[1753949103312,8.49154203,181.44,181.43,77.81589878]
[1753949104326,14.00300587,181.44,181.43,77.81589878]
[1753949104710,13.34300587,181.44,181.43,77.81589878]
[1753949105228,26.0,181.42,181.41,81.75035985]
[1753949105432,33.83154203,181.42,181.41,81.75035985]
[1753949107150,39.34361346,181.42,181.41,77.87589878]
[1753949107304,33.83154203,181.42,181.41,81.75035985]
[1753949110330,0.03,181.45,181.41,81.75035985]
[1753949110635,7.84064344,181.44,181.42,39.08]
[1753949110822,4.1266516,181.43,181.42,38.36]
[1753949111029,4.1266516,181.43,181.42,116.17589878]
[1753949111332,3.71399184,181.44,181.42,116.17589878]
[1753949111512,3.71399184,181.44,181.43,0.72]
[1753949111918,3.71399184,181.44,181.43,3.87446107]
[1753949113614,7.84239069,181.44,181.43,3.87446107]
[1753949116923,7.84239069,181.44,181.43,98.47504382]
[1753949117943,3.71399184,181.44,181.43,98.47504382]
[1753949118244,3.74399184,181.45,181.43,98.47504382]
[1753949118437,3.74399184,181.45,181.44,42.25446107]
[1753949118636,7.87525536,181.45,181.44,42.25446107]
[1753949119560,3.74399184,181.45,181.44,42.25446107]
[1753949120140,3.74399184,181.45,181.44,149.4728881]
[1753949121227,0.03,181.45,181.44,149.4728881]
[1753949123349,0.03,181.45,181.44,154.98435194]
[1753949129957,0.03,181.45,181.44,149.4728881]
[1753949131940,0.03,181.45,181.44,154.98435194]
[1753949132761,0.03,181.45,181.44,149.4728881]
[1753949133756,0.03,181.45,181.44,148.7528881]
[1753949133957,0.03,181.45,181.44,136.13504382]
[1753949135251,0.03,181.45,181.44,132.98058275]
[1753949135562,0.75,181.45,181.44,119.29035985]
[1753949137859,0.75,181.45,181.44,116.13589878]
[1753949138036,0.75,181.45,181.44,119.29035985]
[1753949138752,4.4678457,181.45,181.44,119.29035985]
[1753949139352,9.97900579,181.45,181.44,116.13589878]
[1753949139668,14.10004468,181.45,181.44,116.13589878]
[1753949140040,8.58888459,181.45,181.44,116.13589878]
[1753949140755,14.10004468,181.45,181.44,116.13589878]
[1753949142454,14.10004468,181.45,181.43,77.87589878]
[1753949142455,17.25450575,181.45,181.43,77.87589878]
[1753949142638,8.55888459,181.44,181.43,77.87589878]
[1753949143057,11.71334566,181.44,181.43,77.87589878]
[1753949143772,8.55888459,181.44,181.43,77.87589878]
[1753949144070,15.22973832,181.44,181.43,77.87589878]
[1753949144277,15.22973832,181.44,181.43,0.06]
[1753949144278,14.06892758,181.44,181.43,0.06]
[1753949144438,20.74019589,181.44,181.43,0.06]
[1753949144639,17.58573482,181.44,181.43,0.06]
[1753949144839,17.22338865,181.44,181.43,0.06]
[1753949145048,14.06892758,181.44,181.43,0.06]
[1753949145265,17.22338865,181.44,181.43,0.06]
[1753949145648,14.06892758,181.44,181.43,0.06]
[1753949145868,17.22338865,181.44,181.43,0.06]
[1753949146766,18.99987214,181.44,181.43,0.06]
[1753949147847,14.06892758,181.44,181.43,0.06]
[1753949149980,14.06639696,181.44,181.43,0.06]
[1753949150777,13.34639696,181.44,181.43,0.06]
[1753949151172,14.06639696,181.44,181.43,0.06]
[1753949151484,18.99734152,181.44,181.43,0.06]
[1753949151774,18.99830607,181.44,181.43,0.06]
[1753949152999,18.99760995,181.44,181.43,0.06]
[1753949155588,17.58059594,181.44,181.43,0.06]
[1753949155763,22.5115405,181.44,181.43,0.06]
[1753949156765,60.8915405,181.44,181.43,0.06]
[1753949157885,57.37760995,181.44,181.43,0.06]
[1753949158096,60.89067183,181.44,181.43,0.06]
[1753949158302,57.37760995,181.44,181.43,0.06]
[1753949160082,52.44666539,181.44,181.43,0.06]
[1753949160291,57.37760995,181.44,181.43,0.06]
[1753949162192,30.93094456,181.42,181.41,0.06]
[1753949162374,77.14614611,181.42,181.41,0.06]
[1753949162689,77.86614611,181.42,181.41,0.06]
[1753949164287,83.37821754,181.42,181.41,0.06]
[1753949166794,81.60445209,181.42,181.41,0.06]
[1753949167193,80.88445209,181.42,181.41,0.06]
[1753949170599,80.86504857,181.42,181.41,0.06]
[1753949171890,81.58504857,181.42,181.41,0.06]
[1753949172276,84.46262367,181.42,181.41,0.06]
[1753949172981,84.45550148,181.42,181.41,0.06]
[1753949174076,83.73550148,181.42,181.41,0.06]
[1753949174401,79.62526782,181.42,181.41,0.06]
[1753949174774,83.73694031,181.42,181.41,0.06]
[1753949175399,79.62526782,181.42,181.41,0.06]
[1753949175786,83.73715135,181.42,181.41,0.06]
[1753949176171,83.73715135,181.42,181.41,0.78]
[1753949176502,79.62526782,181.42,181.41,0.78]
[1753949176696,83.73803443,181.42,181.41,0.78]
[1753949176883,83.73802997,181.42,181.41,0.78]
[1753949177888,80.58085086,181.42,181.41,0.78]
[1753949178104,83.73802997,181.42,181.41,0.78]
[1753949178278,80.58085086,181.42,181.41,0.78]
[1753949178479,83.73802997,181.42,181.41,0.78]
[1753949179300,83.69802997,181.42,181.41,0.78]
[1753949180199,83.70237789,181.42,181.41,0.78]
[1753949180795,83.70411317,181.42,181.41,0.78]
[1753949181103,16.20693406,181.42,181.41,0.78]
[1753949181288,13.32935896,181.42,181.41,0.78]
[1753949181484,7.81728753,181.42,181.41,0.78]
[1753949184216,13.32935896,181.42,181.41,0.78]
[1753949188208,7.81728753,181.42,181.41,0.78]
[1753949188606,7.81728753,181.42,181.41,3.93717911]
[1753949190102,7.82862886,181.42,181.41,3.93717911]
[1753949191228,13.34070029,181.42,181.41,3.93717911]
[1753949191407,13.34070029,181.42,181.41,0.78]
[1753949196113,7.82862886,181.42,181.41,0.78]
[1753949196807,7.82862886,181.42,181.41,81.75307789]
[1753949204432,7.82862886,181.42,181.41,120.03307789]
[1753949205202,4.13018668,181.42,181.41,120.03307789]
[1753949205411,3.72844218,181.43,181.41,136.81776186]
[1753949205725,3.72844218,181.43,181.42,3.82717911]
[1753949205921,7.85571374,181.43,181.42,3.82717911]
[1753949206119,0.03,181.43,181.42,3.82717911]
[1753949208706,0.03,181.43,181.42,78.48589878]
[1753949209011,0.03,181.43,181.42,81.64307789]
[1753949210455,0.03,181.43,181.42,98.42776186]
[1753949220368,0.03,181.43,181.42,103.93983329]
[1753949221090,0.03,181.43,181.42,98.42776186]
[1753949223579,0.03,181.43,181.42,103.93983329]
[1753949224975,0.03,181.44,181.43,77.78589878]
[1753949225288,0.03,181.44,181.43,119.89307789]
[1753949226077,0.03,181.44,181.43,125.40484551]
[1753949226393,0.03,181.44,181.43,138.03356195]
[1753949230977,0.03,181.44,181.43,125.40484551]
[1753949231511,0.03,181.44,181.43,78.47589878]
[1753949231672,0.71,181.44,181.43,116.04589878]
[1753949233390,4.40844218,181.44,181.43,116.04589878]
[1753949234069,0.71,181.44,181.43,116.04589878]
[1753949234275,8.5285378,181.44,181.43,116.04589878]
[1753949235286,4.83009562,181.44,181.43,116.04589878]
[1753949237404,0.03,181.44,181.43,116.04589878]
[1753949239414,4.15135203,181.44,181.43,116.04589878]
[1753949239590,0.03,181.44,181.43,116.04589878]
[1753949240122,4.15113357,181.44,181.43,116.04589878]
[1753949240403,4.15113357,181.44,181.43,119.20307789]
[1753949240781,4.15113357,181.44,181.43,119.89307789]
[1753949242407,7.86205244,181.44,181.43,119.89307789]
[1753949246390,3.74091887,181.44,181.43,119.89307789]
[1753949246711,7.86625344,181.44,181.43,116.73589878]
[1753949246892,7.86625344,181.44,181.43,119.89307789]
[1753949248191,7.86625344,181.44,181.43,119.92307789]
[1753949250812,7.86625344,181.44,181.43,136.70776186]
[1753949250997,3.74091887,181.44,181.43,136.70776186]
[1753949251690,0.03,181.44,181.43,142.21952948]
[1753949253418,0.03,181.44,181.43,154.84824592]
[1753949257003,0.03,181.44,181.43,142.21952948]
[1753949258398,0.03,181.44,181.43,154.84824592]
[1753949259020,0.03,181.45,181.44,94.54058275]
[1753949259226,0.03,181.45,181.44,111.59762468]
[1753949259435,0.03,181.45,181.44,116.55794214]
[1753949259805,0.03,181.45,181.44,95.26058275]
[1753949260096,0.03,181.45,181.44,98.41776186]
[1753949262904,0.03,181.45,181.44,111.0464783]
[1753949266436,0.03,181.45,181.44,98.41776186]
[1753949268719,0.03,181.45,181.44,111.0464783]
[1753949274748,0.03,181.45,181.44,98.41776186]
[1753949275446,0.03,181.45,181.44,116.55794214]
[1753949281339,0.03,181.45,181.44,116.61794214]
[1753949282646,0.03,181.46,181.45,94.51058275]
[1753949282845,0.03,181.46,181.45,142.13892195]
[1753949283432,0.03,181.46,181.45,136.62776186]
[1753949284146,0.03,181.46,181.45,135.90776186]
[1753949285847,0.03,181.46,181.45,136.62776186]
[1753949286558,0.03,181.46,181.45,135.90776186]
[1753949287843,3.74091887,181.46,181.45,135.90776186]
[1753949288193,4.41091887,181.46,181.45,135.90776186]
[1753949288475,0.03,181.46,181.45,136.62776186]
[1753949289068,0.03,181.46,181.45,135.90776186]
[1753949291986,0.03,181.46,181.45,136.62776186]
[1753949292286,3.74734852,181.46,181.45,136.62776186]
[1753949292959,3.74734852,181.46,181.45,133.47058275]
[1753949293159,3.74734852,181.46,181.45,135.90776186]
[1753949294580,7.88011386,181.46,181.45,135.90776186]
[1753949294951,8.55011386,181.46,181.45,135.90776186]
[1753949295775,7.88011386,181.46,181.45,135.90776186]
[1753949295993,7.88011386,181.46,181.45,136.62776186]
[1753949299873,3.74734852,181.46,181.45,136.62776186]
[1753949302465,0.03,181.46,181.45,136.62776186]
[1753949303182,0.03,181.46,181.45,135.90776186]
[1753949303482,0.03,181.46,181.45,135.96776186]
[1753949303688,3.75089376,181.46,181.45,135.96776186]
[1753949305288,3.75089376,181.46,181.45,136.62776186]
[1753949306184,0.03,181.46,181.45,136.62776186]
[1753949306391,3.75098448,181.46,181.45,136.62776186]
[1753949309712,0.03,181.48,181.47,73.9449143]
[1753949309880,0.03,181.48,181.47,115.34209341]
[1753949310190,0.03,181.48,181.47,116.00209341]
[1753949310386,4.16443116,181.48,181.47,116.00209341]
[1753949311069,0.03,181.48,181.47,116.00209341]
[1753949312768,0.03,181.48,181.47,112.8449143]
[1753949312988,0.7,181.51,181.49,16.78468397]
[1753949313169,0.7,181.51,181.5,38.24]
[1753949313486,4.13230939,181.51,181.5,38.24]
[1753949313795,39.17253606,181.51,181.5,38.24]
[1753949313996,39.87253606,181.51,181.5,38.24]
[1753949317495,39.87258068,181.51,181.5,38.24]
[1753949317799,39.87258068,181.51,181.49,112.1549143]
[1753949317990,4.83230939,181.5,181.49,112.1549143]
[1753949319279,4.13230939,181.5,181.49,112.1549143]
[1753949321592,4.13230939,181.5,181.49,115.97209341]
[1753949321877,7.85204135,181.5,181.49,115.97209341]
[1753949324604,7.85204135,181.5,181.49,112.1549143]
[1753949324784,7.85204135,181.5,181.49,115.31209341]
[1753949325412,7.88204135,181.5,181.49,112.1549143]
[1753949325983,14.09168322,181.5,181.49,112.1549143]
[1753949326483,14.09197013,181.5,181.49,112.1549143]
[1753949327505,8.58232826,181.5,181.49,112.1549143]
[1753949327707,7.88232826,181.5,181.49,112.1549143]
[1753949328089,13.39197013,181.5,181.49,112.1549143]
[1753949328291,14.09197013,181.5,181.49,112.1549143]
[1753949329611,17.24914924,181.5,181.49,112.1549143]
[1753949329810,25.41853641,181.5,181.49,73.9149143]
[1753949330012,25.41853641,181.5,181.48,112.1549143]